[Event "Gibraltar Challengers B 2019"]
[Site "Caleta"]
[Date "2019.01.29"]
[Round "4"]
[White "Bub, Volker"]
[Black "Alarcon Olmos, Daniel"]
[Result "0-1"]
[ECO "B23"]
[WhiteElo "2108"]
[BlackElo "2124"]
[Annotator "NA RC"]
[PlyCount "72"]
[EventDate "2019.01.18"]
[EventType "swiss"]
[EventCountry "GGB"]
[SourceTitle "playchess.com"]
[Source "ChessBase"]
[SourceQuality "1"]
[TimeControl "6600+10"]

1. e4 {[%emt 0:00:00]} c5 {[%emt 0:00:49]} 2. Nc3 {[%emt 0:00:05]} Nc6 {[%emt 0:03:10]} 3. f4 {[%emt 0:00:56]} e6 {[%emt 0:00:25]} 4. Nf3 {[%emt 0:00:26]} a6 {[%emt 0:01:04]} 5. d3 {[%emt 0:07:25]} d5 {[%emt 0:00:59]} 6. Qe2 {[%emt 0:07:53] B23: Closed Sicilian: Lines without g3} (6. g4 d4 7. Ne2 e5 8. f5 h6 9. Ng3 Nf6 10. h3 Bd7 11. c4 dxc3 12. bxc3 Qc7 13. Kf2 O-O-O {0-1 (40) Ivanisevic,I (2619)-Caruana,F (2782) Warsaw 2013}) 6... Nd4 {[%emt 0:06:30]} 7. Qf2 {[%emt 0:01:57]} Nxf3+ {[%emt 0:02:05]} 8. Qxf3 {[%emt 0:00:17]} Nf6 $146 {[%emt 0:01:23]} ({Predecessor:} 8... d4 9. Nd1 f5 10. Nf2 Nf6 11. g4 fxg4 12. Nxg4 Nxg4 13. Qxg4 Qf6 {½-½ (64) Zeithamel,R-Hadraba,V (2265) Czechia 1997}) 9. Be2 {[%emt 0:01:53]} b5 {[%emt 0:00:29]} 10. e5 {[%emt 0:01:15]} Ng8 {[%emt 0:01:37]} 11. f5 {[%emt 0:07:31]} b4 {[%emt 0:09:36]} 12. fxe6 {[%emt 0:00:33]} Bxe6 {[%emt 0:00:12]} 13. Nd1 {[%emt 0:00:56]} Qc7 {[%emt 0:00:18]} 14. Qg3 {[%emt 0:06:52]} Ne7 {[%emt 0:01:45]} 15. c3 {[%emt 0:02:06]} Nf5 {[%emt 0:14:12]} 16. Qf4 {[%emt 0:09:06]} g5 {[%emt 0:05:54]} 17. Qf2 {[%emt 0:02:17]} h6 {[%emt 0:04:27]} 18. g4 $2 {[%emt 0:07:38]} (18. Ne3 $11 Qxe5 19. Nxf5 Qxf5 20. Qxf5 Bxf5 21. O-O) 18... Nh4 {[%emt 0:01:45]} 19. d4 $2 {[%emt 0:01:11]} (19. O-O $17) 19... bxc3 {[%emt 0:03:52]} 20. bxc3 {[%emt 0:00:00]} cxd4 {[%emt 0:00:03]} 21. cxd4 {[%emt 0:00:21]} Bb4+ {[%emt 0:00:28]} 22. Kf1 {[%emt 0:00:16] [#]} f6 $1 {[%emt 0:16:39]} 23. exf6 {[%emt 0:06:11]} O-O {[%emt 0:00:15]} 24. Kg1 {[%emt 0:08:19]} Be7 {[%emt 0:02:07]} 25. Qg3 {[%emt 0:10:38]} Bd6 {[%emt 0:02:56]} 26. Qf2 {[%emt 0:00:01]} Qd8 {[%emt 0:01:03]} 27. Qe3 {[%emt 0:08:13]} Rxf6 {[%emt 0:00:37]} 28. Nf2 {[%emt 0:01:14]} Qd7 {[%emt 0:01:20]} 29. h3 {[%emt 0:03:48]} Raf8 {[%emt 0:03:48]} 30. Nd3 {[%emt 0:00:35]} Bxg4 {[%emt 0:00:54]} 31. Ne5 {[%emt 0:00:40] [#]} Bxe2 $1 {[%emt 0:00:22]} 32. Qxe2 {[%emt 0:00:45]} Rf1+ {[%emt 0:04:12]} 33. Qxf1 {[%emt 0:00:34]} Rxf1+ {[%emt 0:00:02]} 34. Kxf1 {[%emt 0:00:12]} Qf5+ {[%emt 0:00:03]} 35. Kg1 {[%emt 0:02:00]} Bxe5 {[%emt 0:00:13]} 36. dxe5 {[%emt 0:00:24]} Qf6 {[%emt 0:01:14]} 0-1

[Event "Gibraltar Challengers B 2019"]
[Site "Caleta"]
[Date "2019.01.29"]
[Round "4"]
[White "Havik, Victor"]
[Black "Kukic, Boris"]
[Result "1-0"]
[ECO "D40"]
[WhiteElo "2088"]
[BlackElo "2035"]
[Annotator "NA RC"]
[PlyCount "63"]
[EventDate "2019.01.18"]
[EventType "swiss"]
[EventCountry "GGB"]
[SourceTitle "playchess.com"]
[Source "ChessBase"]
[SourceQuality "1"]
[TimeControl "6600+10"]

1. d4 {[%emt 0:02:46]} d5 {[%emt 0:00:00]} 2. c4 {[%emt 0:00:06]} e6 {[%emt 0:00:01]} 3. Nc3 {[%emt 0:00:15]} Nf6 {[%emt 0:00:37]} 4. Nf3 {[%emt 0:00:28]} Be7 {[%emt 0:00:31]} 5. e3 {[%emt 0:00:18]} O-O {[%emt 0:00:00]} 6. Bd3 {[%emt 0:00:18]} c5 {[%emt 0:06:16]} 7. dxc5 {[%emt 0:06:38] D40: Queen's Gambit Declined: Semi-Tarrasch with 5 e3} (7. O-O dxc4 8. Bxc4 Nc6 9. a3 a6 10. dxc5 Qxd1 11. Rxd1 Bxc5 12. b4 Be7 13. Bb2 Bd7 14. Ne4 Rfd8 15. Nxf6+ Bxf6 16. Bxf6 gxf6 17. Rac1 Kf8 18. Kf1 Ke7 19. Ke1 Rac8 20. Be2 Na7 21. Nd4 Ba4 22. Rxc8 Rxc8 23. Ra1 Rc7 24. Kd2 Rd7 {½-½ (24) Demidov,M (2520)-Anand,V (2773) St Petersburg 2018}) 7... Bxc5 {[%emt 0:00:00]} 8. O-O {[%emt 0:01:01]} b6 {[%emt 0:01:19]} 9. cxd5 {[%emt 0:00:46]} exd5 {[%emt 0:00:49]} 10. h3 {[%emt 0:00:27]} Bb7 $146 {[%emt 0:02:55]} ({Predecessor:} 10... Ba6 11. b3 Bxd3 12. Qxd3 Nc6 13. a3 a5 14. Rd1 Ne7 15. Bb2 Qc8 {1-0 (30) Hasselbacher,U (1851)-Seifert,A (1838) Kitzingen 2010}) 11. a3 {[%emt 0:00:43]} Nbd7 {[%emt 0:00:41]} 12. b4 {[%emt 0:00:09]} Bd6 {[%emt 0:00:16]} 13. Nb5 {[%emt 0:00:10]} Bb8 {[%emt 0:00:00]} 14. Bb2 {[%emt 0:00:13]} a6 {[%emt 0:00:11]} 15. Nbd4 {[%emt 0:00:50]} Ne5 {[%emt 0:00:37]} 16. Nxe5 {[%emt 0:00:07]} Bxe5 {[%emt 0:02:19]} 17. f4 {[%emt 0:00:26]} Bd6 {[%emt 0:15:20]} 18. Nf5 {[%emt 0:01:44]} Bc8 {[%emt 0:13:43]} 19. Nxd6 {[%emt 0:00:17]} Qxd6 {[%emt 0:00:32]} 20. Rc1 {[%emt 0:01:07]} Re8 {[%emt 0:00:32]} 21. Be5 {[%emt 0:00:54]} Qd8 {[%emt 0:03:02]} 22. Bc7 {[%emt 0:33:13]} Qe7 {[%emt 0:00:00]} 23. Bxb6 {[%emt 0:00:43]} Ne4 {[%emt 0:15:57]} 24. f5 {[%emt 0:10:25]} (24. Bd4 $18) 24... Nf6 {[%emt 0:02:43]} 25. Qf3 {[%emt 0:02:20]} Rb8 {[%emt 0:00:00]} 26. Bd4 {[%emt 0:01:53]} Bb7 {[%emt 0:06:29]} 27. Rc5 {[%emt 0:00:17]} Rbc8 {[%emt 0:04:12]} 28. Rfc1 {[%emt 0:02:03]} Ne4 $2 {[%emt 0:01:55]} (28... Qd6 29. Kf2 Ne4+ 30. Bxe4 dxe4) 29. Bxe4 {[%emt 0:17:14]} dxe4 {[%emt 0:00:38]} 30. Qg3 {[%emt 0:00:17]} f6 {[%emt 0:01:50]} 31. Rc7 {[%emt 0:02:20]} Qf8 $18 {[%emt 0:01:11]} 32. Kh2 {[%emt 0:05:58]} 1-0

[Event "Gibraltar Challengers B 2019"]
[Site "Caleta"]
[Date "2019.01.29"]
[Round "4"]
[White "Broekman, Willem"]
[Black "Orndahl, Mats"]
[Result "1-0"]
[ECO "D23"]
[WhiteElo "2071"]
[BlackElo "2160"]
[Annotator "NA RC"]
[PlyCount "128"]
[EventDate "2019.01.18"]
[EventType "swiss"]
[EventCountry "GGB"]
[SourceTitle "playchess.com"]
[Source "ChessBase"]
[SourceQuality "1"]
[TimeControl "6600+10"]

1. d4 {[%emt 0:00:00]} d5 {[%emt 0:04:12]} 2. c4 {[%emt 0:00:00]} c6 {[%emt 0:00:06]} 3. Nf3 {[%emt 0:00:00]} Nf6 {[%emt 0:00:12]} 4. Qb3 {[%emt 0:00:06]} dxc4 {[%emt 0:00:19]} 5. Qxc4 {[%emt 0:00:14]} Bg4 {[%emt 0:00:13]} 6. Nbd2 {[%emt 0:01:59]} e6 {[%emt 0:01:07] D23: Queen's Gambit Accepted: 3 Nf3 Nf6 sidelines} 7. g3 {[%emt 0:00:35]} Nbd7 {[%emt 0:00:24]} 8. Bg2 {[%emt 0:00:24]} Be7 {[%emt 0:00:11]} 9. O-O {[%emt 0:00:54]} O-O {[%emt 0:00:33]} 10. Rd1 {[%emt 0:04:29]} (10. Qb3 b5 11. h3 Bh5 12. g4 Bg6 13. Nh4 Qb6 14. Nxg6 hxg6 {½-½ (63) Mamedyarov,S (2817)-Gozzoli,Y (2630) chess.com INT 2019}) 10... Qb6 {[%emt 0:17:51]} 11. b3 {[%emt 0:16:53]} a5 $146 {[%emt 0:16:28]} ({Predecessor:} 11... c5 12. Bb2 cxd4 13. Bxd4 Bc5 14. Bxc5 Qxc5 15. Qxc5 Nxc5 {½-½ (30) Van Wely,L (2653)-Lintchevski,D (2561) Jurmala 2016}) 12. Bb2 {[%emt 0:04:29]} a4 {[%emt 0:02:25]} 13. e4 {[%emt 0:02:10]} Rfd8 {[%emt 0:05:57]} 14. Bc3 {[%emt 0:06:22]} Qa6 {[%emt 0:03:44]} 15. Qxa6 {[%emt 0:06:24]} Rxa6 {[%emt 0:00:18]} 16. b4 {[%emt 0:00:34]} Raa8 {[%emt 0:08:22]} 17. Re1 {[%emt 0:00:19]} Rac8 {[%emt 0:08:29]} 18. Rac1 {[%emt 0:04:51]} b6 {[%emt 0:01:12]} (18... Ne8 $11 {keeps the balance.}) 19. Nc4 {[%emt 0:00:31]} Bh5 {[%emt 0:02:42]} 20. Nfe5 {[%emt 0:03:44]} c5 $2 {[%emt 0:11:18]} (20... Nxe5 $14 21. dxe5 Nd7) 21. Nxd7 {[%emt 0:04:11]} Nxd7 {[%emt 0:00:14]} 22. dxc5 {[%emt 0:00:24]} bxc5 {[%emt 0:00:51]} 23. b5 {[%emt 0:00:33]} f6 {[%emt 0:04:27]} 24. Rb1 {[%emt 0:02:13]} e5 {[%emt 0:03:02]} 25. Na5 {[%emt 0:05:26]} Nb6 {[%emt 0:07:26]} 26. Bf1 {[%emt 0:02:54]} Bf7 {[%emt 0:06:58]} 27. Nc6 {[%emt 0:01:36]} Re8 {[%emt 0:00:39]} 28. a3 {[%emt 0:07:25]} (28. Ba5 $16 Nc4 29. Bh3 Nxa5 30. Nxe7+ Rxe7 31. Bxc8 Bxa2 32. Rbc1) 28... Bb3 {[%emt 0:00:40]} (28... Bf8 $11 {remains equal.}) 29. Ba5 {[%emt 0:01:40]} Nc4 {[%emt 0:00:39]} 30. Bxc4+ {[%emt 0:01:57]} ({White should try} 30. Rxb3 $16 Nxa5 31. Rc3 Nxc6 32. bxc6) 30... Bxc4 {[%emt 0:00:01]} 31. Rb2 {[%emt 0:08:09]} Bb3 {[%emt 0:01:46]} 32. Rd2 {[%emt 0:10:55]} c4 {[%emt 0:00:07]} 33. Nxe7+ {[%emt 0:04:25]} Rxe7 {[%emt 0:00:01]} 34. Rc1 {[%emt 0:03:04]} Kf7 {[%emt 0:01:04]} 35. Rc3 {[%emt 0:00:38]} Ke8 {[%emt 0:00:08]} 36. b6 {[%emt 0:01:29]} Rd7 {[%emt 0:00:17]} 37. Rc1 {[%emt 0:02:09]} Rxd2 {[%emt 0:00:05]} 38. Bxd2 {[%emt 0:00:02]} Kd7 {[%emt 0:00:10]} 39. Rc3 {[%emt 0:00:16]} Kc6 {[%emt 0:00:14]} 40. Be3 {[%emt 0:00:19]} Rd8 {[%emt 0:00:08]} 41. Kg2 {[%emt 0:00:51]} Rd1 {[%emt 0:00:13]} 42. h4 {[%emt 0:00:02]} Ra1 {[%emt 0:00:08]} 43. Bc1 {[%emt 0:00:03]} Kxb6 {[%emt 0:00:07]} 44. Kf3 {[%emt 0:00:10]} Ra2 {[%emt 0:00:08]} 45. Ke3 {[%emt 0:00:06]} Kc5 {[%emt 0:00:19]} 46. g4 {[%emt 0:00:17]} g6 {[%emt 0:00:17]} 47. f4 {[%emt 0:00:10]} Bd1 {[%emt 0:00:12]} 48. fxe5 {[%emt 0:00:10]} fxe5 {[%emt 0:00:02]} 49. Bd2 {[%emt 0:00:15]} Bxg4 {[%emt 0:00:10]} 50. Rc1 {[%emt 0:00:28]} Rxa3+ {[%emt 0:00:10]} 51. Bc3 {[%emt 0:00:02]} Rb3 {[%emt 0:00:20]} 52. Kd2 {[%emt 0:00:02]} Bf3 {[%emt 0:00:18]} 53. Re1 {[%emt 0:00:05]} Kd6 {[%emt 0:00:09]} 54. Kc2 {[%emt 0:00:12]} a3 {[%emt 0:00:14]} 55. Re3 {[%emt 0:00:08]} Bg4 {[%emt 0:00:23]} 56. Rg3 {[%emt 0:00:05]} Bd7 $19 {[%emt 0:00:27]} 57. Rf3 {[%emt 0:00:05]} a2 {[%emt 0:00:20]} 58. Rf6+ {[%emt 0:00:16]} Be6 {[%emt 0:00:06]} 59. Rf1 {[%emt 0:00:05]} Rb7 {[%emt 0:00:31]} 60. Ra1 {[%emt 0:00:01]} Ra7 {[%emt 0:00:03]} 61. Rd1+ {[%emt 0:00:10]} Ke7 {[%emt 0:00:25]} 62. Bxe5 {[%emt 0:00:03]} h6 {[%emt 0:00:01]} 63. Ba1 {[%emt 0:00:02]} Ra3 {[%emt 0:00:05]} 64. Rg1 {[%emt 0:00:07]} Kf7 {[%emt 0:00:05]} 1-0

[Event "Gibraltar Challengers B 2019"]
[Site "Caleta"]
[Date "2019.01.29"]
[Round "4"]
[White "Alami, Halim"]
[Black "Abdulraheem Abdulrahman Akint"]
[Result "0-1"]
[ECO "C46"]
[WhiteElo "2059"]
[BlackElo "2224"]
[Annotator "NA RC"]
[PlyCount "131"]
[EventDate "2019.01.18"]
[EventType "swiss"]
[EventCountry "GGB"]
[SourceTitle "playchess.com"]
[Source "ChessBase"]
[SourceQuality "1"]
[TimeControl "6600+10"]

{[%evp 24,118,-7,-40,-16,-30,-8,-33,-31,-31,-33,-64,-12,-16,-12,-2,32767,-30,-29,-16,0,-24,0,-16,0,-52,8,-7,-35,32767,-2,-12,0,-16,0,-58,-10,0,0,0,0,-18,-12,-44,32767,32767,32767,-4,32767,32767,32767,32767,0,-12,-13,-14,-10,-50,-61,-85,32767,-229,32767,32767,32767,32767,32767,32767,-340,32767,-410,-504,-590,-639,32767,-626,32767,-565,32767,32767,-755,32767,32767,-737,-306,-215,-245,-263,-280,-314,-276,-220,32767,32767,32767,-374,-220]} 1. e4 {[%emt 0:00:13]} e5 {[%emt 0:04:58]} 2. Nf3 {[%emt 0:00:25]} Nc6 {[%emt 0:00:08]} 3. Nc3 {[%emt 0:00:11]} Bb4 {[%emt 0:02:00]} 4. a3 {[%emt 0:02:32]} Be7 {[%emt 0:06:23] C46: 3 Nc3: Unusual Black 3rd moves} (4... Bxc3 5. bxc3 Nf6 6. d3 d5 7. c4 dxe4 8. Ng5 Bg4 9. f3 exf3 10. h3 f2+ 11. Kxf2 Bxd1 12. Ke1 Bh5 13. g4 h6 14. Nf3 {0-1 (25) Jovic,D (2135)-Sarovski,N (1898) Grocka 2015}) 5. d4 {[%emt 0:01:26]} exd4 {[%emt 0:00:31]} 6. Nxd4 {[%emt 0:00:11]} Nf6 $146 {[%emt 0:00:29]} ({Predecessor:} 6... Bc5 7. Nxc6 bxc6 8. Bf4 Ne7 9. Bc4 O-O 10. O-O Ng6 11. Bg3 d6 12. Rb1 {0-1 (30) Schultz,H (1168)-Ezzat,T (1549) Dortmund 2003}) 7. Nf5 {[%emt 0:02:06]} O-O {[%emt 0:02:32]} 8. Be2 {[%emt 0:08:20]} d5 {[%emt 0:07:15]} 9. Nxe7+ {[%emt 0:03:06]} Nxe7 {[%emt 0:00:27]} 10. e5 {[%emt 0:12:34]} Ne8 {[%emt 0:03:32]} 11. Bg5 {[%emt 0:04:49]} c6 {[%emt 0:04:01]} 12. Bd3 {[%emt 0:04:46]} Qc7 {[%emt 0:05:29]} 13. f4 {[%emt 0:10:37]} f6 {[%emt 0:00:54]} 14. exf6 {[%emt 0:06:40]} Nxf6 {[%emt 0:00:07]} 15. O-O {[%emt 0:10:37]} Nf5 {[%emt 0:03:27]} 16. Bxf6 {[%emt 0:03:30]} Rxf6 {[%emt 0:00:27]} 17. Qe1 {[%emt 0:17:16]} ({Much weaker is} 17. Qh5 Qb6+ 18. Kh1 Ng3+ 19. hxg3 Rh6 $17) 17... Bd7 {[%emt 0:01:39]} 18. Qf2 {[%emt 0:01:46]} b6 {[%emt 0:04:13]} 19. Rae1 {[%emt 0:00:28]} Raf8 {[%emt 0:00:13]} 20. Ne2 {[%emt 0:04:21]} c5 {[%emt 0:01:19]} 21. c3 {[%emt 0:07:37]} h6 {[%emt 0:08:16]} 22. Bc2 {[%emt 0:00:31]} Bb5 {[%emt 0:01:58]} 23. Bb3 {[%emt 0:00:51]} Bc6 {[%emt 0:05:39]} 24. Bc2 {[%emt 0:02:22]} Kh8 {[%emt 0:00:55]} (24... Nd6 $15) 25. Ng3 {[%emt 0:00:18]} Nxg3 {[%emt 0:04:40]} 26. Qxg3 {[%emt 0:01:01]} Bb5 {[%emt 0:09:29]} 27. Rf3 {[%emt 0:00:11]} d4 {[%emt 0:00:24]} 28. a4 {[%emt 0:02:49]} Ba6 {[%emt 0:03:18]} 29. Bg6 {[%emt 0:00:58]} Bb7 {[%emt 0:01:59]} ({Don't blunder} 29... Rxf4 $2 30. Rxf4 Rg8 {[#]} 31. Rf8 $1 $18 {[%mdl 512]}) 30. Rf2 {[%emt 0:00:08]} Bc6 {[%emt 0:02:00]} ({Avoid the trap} 30... Rxf4 $2 31. Rxf4 Qd8 32. Rxf8+ Qxf8 33. Re8 $18) 31. Bc2 {[%emt 0:00:22]} Qd6 {[%emt 0:02:20]} 32. Qd3 {[%emt 0:00:22]} g6 {[%emt 0:00:54]} 33. Qg3 {[%emt 0:00:47]} c4 {[%emt 0:06:56]} 34. cxd4 {[%emt 0:00:07]} Qxd4 {[%emt 0:00:07]} 35. Qc3 {[%emt 0:00:45]} Qxc3 {[%emt 0:01:10]} 36. bxc3 {[%emt 0:00:02]} Kg7 {[%emt 0:05:17]} 37. Re7+ {[%emt 0:00:09]} R8f7 {[%emt 0:00:11]} 38. Rxf7+ {[%emt 0:00:05]} Kxf7 {[%emt 0:00:18]} 39. g3 {[%emt 0:00:13]} Rd6 {[%emt 0:02:58]} 40. Re2 {[%emt 0:00:02]} Bf3 {[%emt 0:00:25]} 41. Re3 {[%emt 0:00:17]} Bd1 {[%emt 0:00:13]} 42. Be4 {[%emt 0:00:38]} (42. Bxd1 $17 {only move.} Rxd1+ 43. Kf2) 42... Bxa4 {[%emt 0:00:15]} 43. f5 {[%emt 0:00:20]} g5 {[%emt 0:00:52]} 44. Bf3 {[%emt 0:00:15]} Kf6 {[%emt 0:01:11]} 45. Bh5 {[%emt 0:00:12]} Bd7 {[%emt 0:00:49]} ({Don't play} 45... Kxf5 46. Be2 $19) 46. Be2 {[%emt 0:00:06]} b5 {[%emt 0:00:39]} 47. g4 {[%emt 0:00:02]} a5 {[%emt 0:00:26]} 48. Kf2 {[%emt 0:00:03]} a4 {[%emt 0:00:19]} 49. Rg3 $1 {[%emt 0:00:15]} Rd2 {[%emt 0:00:49]} (49... a3 $142 50. Rg1 Rd2) 50. Rh3 {[%emt 0:00:20]} Kg7 {[%emt 0:01:04]} 51. Ke1 {[%emt 0:00:03]} Rd6 {[%emt 0:00:16]} 52. Rg3 {[%emt 0:00:12]} Kf6 {[%emt 0:00:17]} 53. Kf2 {[%emt 0:00:02]} Bc6 {[%emt 0:00:38]} 54. Ke3 {[%emt 0:00:16]} Rd8 {[%emt 0:00:52]} 55. Rh3 {[%emt 0:00:02]} Kg7 {[%emt 0:00:10]} 56. Rg3 {[%emt 0:00:22]} Bb7 {[%emt 0:00:13]} 57. Rg1 $19 {[%emt 0:00:05]} Kf6 {[%emt 0:00:04]} 58. Rb1 {[%emt 0:00:07]} Bc6 {[%emt 0:00:03]} 59. Rf1 {[%emt 0:00:20]} Rd6 {[%emt 0:00:03]} 60. Rb1 {[%emt 0:00:16]} Ke5 {[%emt 0:00:04]} 61. Rf1 {[%emt 0:00:06]} Be8 {[%emt 0:00:24]} 62. h4 {[%emt 0:00:13]} gxh4 {[%emt 0:00:31]} 63. Rh1 {[%emt 0:00:11]} Bc6 {[%emt 0:00:01]} 64. Rxh4 {[%emt 0:00:09]} a3 {[%emt 0:00:01]} 65. Bxc4 {[%emt 0:00:12]} bxc4 {[%emt 0:00:05]} 66. f6 {[%emt 0:00:24]} 0-1

[Event "Gibraltar Challengers B 2019"]
[Site "Caleta"]
[Date "2019.01.29"]
[Round "4"]
[White "Ungureanu, Sandu"]
[Black "Adebajo, Olufemi"]
[Result "1-0"]
[ECO "A00"]
[WhiteElo "2057"]
[BlackElo "1915"]
[Annotator "NA RC"]
[PlyCount "114"]
[EventDate "2019.01.18"]
[EventType "swiss"]
[EventCountry "GGB"]
[SourceTitle "playchess.com"]
[Source "ChessBase"]
[SourceQuality "1"]
[TimeControl "6600+10"]

1. g3 {[%emt 0:00:00]} d5 {[%emt 0:09:08]} 2. Bg2 {[%emt 0:00:05]} c6 {[%emt 0:00:13]} 3. d3 {[%emt 0:00:18]} e5 {[%emt 0:02:02]} 4. Nf3 {[%emt 0:00:43]} Qc7 {[%emt 0:00:24]} 5. e4 {[%emt 0:00:45]} Nf6 {[%emt 0:00:50]} 6. exd5 {[%emt 0:00:11]} cxd5 {[%emt 0:00:20]} 7. O-O {[%emt 0:00:09]} Bd6 {[%emt 0:00:35]} 8. Bg5 {[%emt 0:04:31]} Nbd7 {[%emt 0:00:10]} 9. Nc3 {[%emt 0:00:37]} a6 {[%emt 0:00:13]} 10. Nd2 {[%emt 0:01:18]} d4 {[%emt 0:07:09]} 11. Nce4 {[%emt 0:01:45]} Nxe4 {[%emt 0:00:32]} 12. Nxe4 {[%emt 0:00:06]} O-O {[%emt 0:00:23]} 13. c4 {[%emt 0:06:12]} f5 {[%emt 0:04:14]} 14. Nxd6 {[%emt 0:00:22]} Qxd6 {[%emt 0:00:09]} 15. Qf3 {[%emt 0:04:38]} Nf6 {[%emt 0:05:37]} 16. Bxf6 {[%emt 0:01:04]} Qxf6 {[%emt 0:01:11]} 17. Qd5+ {[%emt 0:01:16]} Be6 {[%emt 0:00:59]} 18. Qxb7 {[%emt 0:00:21]} Rab8 {[%emt 0:00:16]} 19. Qxa6 {[%emt 0:00:44]} Rxb2 {[%emt 0:00:09]} 20. Rfb1 {[%emt 0:01:30]} Rxb1+ {[%emt 0:00:45]} 21. Rxb1 {[%emt 0:00:07]} f4 {[%emt 0:00:22]} 22. gxf4 {[%emt 0:00:42]} exf4 {[%emt 0:00:43]} 23. Qxe6+ {[%emt 0:00:15]} Qxe6 {[%emt 0:00:43]} 24. Bd5 {[%emt 0:00:06]} Qxd5 {[%emt 0:00:27]} 25. cxd5 {[%emt 0:00:05]} Rd8 {[%emt 0:03:41]} 26. Rb5 {[%emt 0:00:35]} Kf7 {[%emt 0:02:39]} (26... Ra8 $16) 27. Kg2 {[%emt 0:00:37]} ({Better is} 27. a4) 27... Ra8 {[%emt 0:00:23]} 28. Rb4 {[%emt 0:00:57]} Rxa2 {[%emt 0:00:23]} 29. Rxd4 {[%emt 0:00:07]} g5 {[%emt 0:00:48]} 30. h4 {[%emt 0:00:21]} h6 {[%emt 0:00:25]} 31. Kf3 {[%emt 0:01:10]} Kf6 {[%emt 0:01:49]} 32. d6 {[%emt 0:00:48]} Ra8 {[%emt 0:00:09]} 33. hxg5+ {[%emt 0:01:46]} hxg5 {[%emt 0:00:27]} 34. d7 {[%emt 0:01:22]} Rd8 {[%emt 0:00:12]} 35. Ke4 {[%emt 0:00:22]} Ke6 {[%emt 0:12:05]} 36. f3 {[%emt 0:00:45]} Kf6 {[%emt 0:00:34]} 37. Rd5 {[%emt 0:00:20]} Ke6 {[%emt 0:01:03]} 38. Rxg5 {[%emt 0:00:10]} Rxd7 {[%emt 0:00:24]} 39. Rg6+ {[%emt 0:00:24]} Kf7 {[%emt 0:00:48]} 40. Rg4 {[%emt 0:00:09]} Re7+ {[%emt 0:03:11]} 41. Kxf4 {[%emt 0:00:13]} Re1 {[%emt 0:00:17]} 42. Rg5 {[%emt 0:01:33]} Kf6 {[%emt 0:01:24]} 43. Ra5 {[%emt 0:01:50]} Ke6 {[%emt 0:02:51]} 44. d4 {[%emt 0:01:11]} Rd1 {[%emt 0:01:30] [#]} 45. d5+ $1 {[%emt 0:00:35]} Kd6 {[%emt 0:00:35]} 46. Kf5 {[%emt 0:00:19]} Rh1 {[%emt 0:00:48]} 47. f4 {[%emt 0:00:13]} Rh8 {[%emt 0:00:25]} 48. Kg6 {[%emt 0:00:13]} Rg8+ {[%emt 0:00:59]} 49. Kf7 {[%emt 0:03:10]} Rg4 {[%emt 0:01:44]} 50. f5 {[%emt 0:02:43]} Ke5 {[%emt 0:02:30]} 51. f6 {[%emt 0:00:18]} Rb4 {[%emt 0:00:20]} 52. Ra6 {[%emt 0:01:36]} Kxd5 {[%emt 0:01:00]} 53. Kg6 {[%emt 0:00:15]} Rg4+ {[%emt 0:03:13]} 54. Kf5 {[%emt 0:01:58]} Rg1 {[%emt 0:00:28]} 55. f7 {[%emt 0:00:08]} Rf1+ {[%emt 0:00:40]} 56. Kg6 {[%emt 0:00:10]} Rg1+ {[%emt 0:00:38]} 57. Kh7 {[%emt 0:00:09]} Ke5 {[%emt 0:02:20]} 1-0